Name,Sub Group,Service Area ,Expense Type,Narrative,Date,Transaction No,Amount,Supplier Name,Supplier Ref,Period,Year
Allerdale Borough Council,12101,Premises,Corporate Property Maintenance,External Maintenance & Decoration,07/01/2015,99858,90,PTSG ELECTRICAL SERVICES LTD,C00142,10,2014
Allerdale Borough Council,12101,Premises,Corporate Property Maintenance,External Maintenance & Decoration,07/01/2015,99859,284.06,TRAVIS PERKINS,A00742,10,2014
Allerdale Borough Council,12103,Premises,Coastal Protection and Inland Flooding,Grounds Maintenance,07/01/2015,99860,"3,500.00",WYG ENGINEERING LTD,A00155,10,2014
Allerdale Borough Council,15501,Supplies & Services,Food and Occupational Health,Consultants Fees,07/01/2015,99861,750,NORTHGATE INFORMATION SOLUTIONS,A00213,10,2014
Allerdale Borough Council,15202,Supplies & Services,Carnegie Theatre,Bar Provision,07/01/2015,99862,323.88,DRINKS EXPRESS,A01862,10,2014
Allerdale Borough Council,15203,Supplies & Services,Members Services,Catering Costs and Consumables,07/01/2015,99863,58.5,MAGGIES BAKERY,A01685,10,2014
Allerdale Borough Council,15101,Supplies & Services,Corporate Property Maintenance,Equipment Costs,07/01/2015,99864,55.49,ARCO LIMITED - CARLISLE,A01448,10,2014
Allerdale Borough Council,14100,Transport,Mayoral Services,Budget-Council Vehicles (Non-capital),07/01/2015,99865,240,ACE TAXIS,A01927,10,2014
Allerdale Borough Council,15514,Supplies & Services,Mayor's Fund,Public Entertainment,07/01/2015,99866,148,ROGER BURGE POPPY APPEAL WORKINGTON RBL,M00593,10,2014
Allerdale Borough Council,12402,Premises,Corporate Property Maintenance,Electricity,07/01/2015,99867,24.02,BRITISH GAS,X00039,10,2014
Allerdale Borough Council,12403,Premises,Corporate Property Maintenance,Gas,07/01/2015,99868,391.02,BRITISH GAS ,X00039,10,2014
Allerdale Borough Council,12408,Premises,Public Convenience Cleaning,Water & Sewage,07/01/2015,99869,166.21,UNITED UTILITIES,X00011,10,2014
Allerdale Borough Council,12408,Premises,Public Convenience Cleaning,Water & Sewage,07/01/2015,99870,186.21,UNITED UTILITIES,X00011,10,2014
Allerdale Borough Council,12408,Premises,Public Convenience Cleaning,Water & Sewage,07/01/2015,99871,603.2,UNITED UTILITIES,X00011,10,2014
Allerdale Borough Council,12408,Premises,Public Convenience Cleaning,Water & Sewage,07/01/2015,99872,790.07,UNITED UTILITIES,X00011,10,2014
Allerdale Borough Council,12408,Premises,Public Convenience Cleaning,Water & Sewage,07/01/2015,99873,128.77,UNITED UTILITIES,X00011,10,2014
Allerdale Borough Council,12402,Premises,Car Parks Inspection & Maintenance,Electricity,07/01/2015,99874,315.35,N POWER,X00015,10,2014
Allerdale Borough Council,12402,Premises,Car Parks Inspection & Maintenance,Electricity,07/01/2015,99875,83.07,N POWER ,X00015,10,2014
Allerdale Borough Council,15810,Supplies & Services,Carnegie Theatre,Software Licences,07/01/2015,99876,29.52,TICKETS.COM LTD,A00371,10,2014
Allerdale Borough Council,16150,Supplies & Services,Solway Wetlands Project,General Promotions,07/01/2015,99877,26.77,Redacted information - included personal information ,M00679,10,2014
Allerdale Borough Council,70104,VAT,VAT Control Account,VAT - 20%,07/01/2015,99878,"1,803.55",LET LAURA SPEAK,M00678,10,2014
Allerdale Borough Council,33150,Income,Credit Union,Other Fees Income,07/01/2015,99879,"1,071.53",THE ALLERDALE CREDIT UNION,A00493,10,2014
Allerdale Borough Council,16150,Supplies & Services,Solway Wetlands Project,General Promotions,07/01/2015,99880,19.83,Redacted information - included personal information ,M00608,10,2014
Allerdale Borough Council,16150,Supplies & Services,Solway Wetlands Project,General Promotions,07/01/2015,99881,165,Redacted information - included personal information ,M00645,10,2014
Allerdale Borough Council,16350,Supplies & Services,Homelessness,Miscellaneous Expenses,07/01/2015,99882,350,BR PROPERTIES MANAGEMENT,M00239,10,2014
Allerdale Borough Council,54105,Capital Expenditure,Disabled Facilities Grants,Grants  Private Individuals (Capital),07/01/2015,99883,"1,750.00",DOLPHIN STAIRLIFTS CUMBRIA,X00107,10,2014
Allerdale Borough Council,70104,VAT,VAT Control Account,VAT - 20%,07/01/2015,99884,"1,628.73",WORKINGTON PLAYGOERS,M00028,10,2014
Allerdale Borough Council,70104,VAT,VAT Control Account,VAT - 20%,07/01/2015,99885,507.85,WORKINGTON PLAYGOERS,M00028,10,2014
Allerdale Borough Council,54105,Capital Expenditure,Disabled Facilities Grants,Grants  Private Individuals (Capital),13/01/2015,99886,"1,422.95",BARCLAYCARD COMMERCIAL,X00207,10,2014
Allerdale Borough Council,16350,Supplies & Services,Supporting Homes at risk of flooding,Miscellaneous Expenses,07/01/2015,99887,"3,024.53",Redacted information - included personal information ,M00680,10,2014
Allerdale Borough Council,15808,Supplies & Services,Multi-functional Printers,Computer Consumables,14/01/2015,99888,199,ANTALIS,A00122,10,2014
Allerdale Borough Council,10500,Employee Costs,Corporate Recruitment,Budget-Recruitment Expenses,07/01/2015,99889,"3,425.00",GATENBYSANDERSON LIMITED,A01953,10,2014
Allerdale Borough Council,10501,Employee Costs,Corporate Recruitment,Advertising Vacancies,07/01/2015,99890,"3,675.00",GATENBYSANDERSON LIMITED,A01953,10,2014
Allerdale Borough Council,15101,Supplies & Services,Homelessness,Equipment Costs,07/01/2015,99891,154.45,THE LAUNDRY STUDIO,A00225,10,2014
Allerdale Borough Council,15506,Supplies & Services,KMAG Enhancement Activity,Professional Services,07/01/2015,99892,114.2,KESWICK MUSEUM & ART GALLERY,A00337,10,2014
Allerdale Borough Council,15506,Supplies & Services,KMAG Enhancement Activity,Professional Services,07/01/2015,99893,"1,525.00",KESWICK MUSEUM & ART GALLERY,A00337,10,2014
Allerdale Borough Council,15506,Supplies & Services,KMAG Enhancement Activity,Professional Services,07/01/2015,99894,105,KESWICK MUSEUM & ART GALLERY,A00337,10,2014
Allerdale Borough Council,15103,Supplies & Services,KMAG Enhancement Activity,Purchase of Materials,07/01/2015,99895,44.46,KESWICK MUSEUM & ART GALLERY,A00337,10,2014
Allerdale Borough Council,15103,Supplies & Services,KMAG Enhancement Activity,Purchase of Materials,07/01/2015,99896,49.58,KESWICK MUSEUM & ART GALLERY,A00337,10,2014
Allerdale Borough Council,15514,Supplies & Services,Carnegie Theatre,Public Entertainment,07/01/2015,99897,"1,965.88",SWEENEY ENTERTAINMENTS,A01774,10,2014
Allerdale Borough Council,52101,Capital Expenditure,New Leisure Facility,Architects Fees (Capital),07/01/2015,99898,300,GT ARCHITECTS,A01777,10,2014
Allerdale Borough Council,15101,Supplies & Services,Public Convenience Cleaning,Equipment Costs,07/01/2015,99899,184.36,WF HYGIENE & CLEANING SUPPLIES,A01794,10,2014
Allerdale Borough Council,12303,Premises,Corporate Property Maintenance,Window Cleaning,07/01/2015,99900,240,Redacted information - included personal information ,A00259,10,2014
Allerdale Borough Council,16101,Supplies & Services,Planning and Development,Statutory Notices,07/01/2015,99901,546.03,CUMBRIA CC - 3C STUDIO,A00070,10,2014
Allerdale Borough Council,20150,Third Party Payments,Footways,General Partnership Service Fees,07/01/2015,99902,"1,050.00",FIRTH FABRICATION SERVICES,C00020,10,2014
Allerdale Borough Council,15514,Supplies & Services,Carnegie Theatre,Public Entertainment,07/01/2015,99903,850,THE PRODUCTION EXCHANGE LTD,A02090,10,2014
Allerdale Borough Council,15513,Supplies & Services,Carnegie Theatre,Subcontractors - General,14/01/2015,99904,165,Redacted information - included personal information ,A01510,10,2014
Allerdale Borough Council,14101,Transport,Mayoral Services,Vehicle Leasing,07/01/2015,99905,30,ACE TAXIS,A01927,10,2014
Allerdale Borough Council,15501,Supplies & Services,Planning and Development,Consultants Fees,21/01/2015,99906,600,A1 ARBORISTS LTD,A02104,10,2014
Allerdale Borough Council,16150,Supplies & Services,Town Centre Management,General Promotions,14/01/2015,99907,250,CUMBRIAN NEWSPAPERS LIMITED,A00869,10,2014
Allerdale Borough Council,15506,Supplies & Services,KMAG Enhancement Activity,Professional Services,14/01/2015,99908,300,SIMON GRISDALE REMOVALS,A01688,10,2014
Allerdale Borough Council,15506,Supplies & Services,Museums,Professional Services,07/01/2015,99909,70,HESKETH ECOLOGY,A01999,10,2014
Allerdale Borough Council,16302,Supplies & Services,Corporate Improvement Team,Room Hire,07/01/2015,99910,20,COCKERMOUTH TOWN COUNCIL,A00586,10,2014
Allerdale Borough Council,15506,Supplies & Services,Carnegie Theatre,Professional Services,07/01/2015,99911,72.38,ADECCO RECRUITMENT,A00188,10,2014
Allerdale Borough Council,15506,Supplies & Services,Carnegie Theatre,Professional Services,28/01/2015,99912,74.79,ADECCO RECRUITMENT,A00188,10,2014
Allerdale Borough Council,15508,Supplies & Services,Members Services,Subscriptions,14/01/2015,99913,198,THE ASSOCIATION OF DEMOCRATIC SERVICES OFFICERS,A01129,10,2014
Allerdale Borough Council,72104,Holding and Control Accounts,Debtor Control Account,Debtors (Control Account),07/01/2015,99914,11.76,Redacted information - included personal information ,R00009,10,2014
Allerdale Borough Council,72104,Holding and Control Accounts,Debtor Control Account,Debtors (Control Account),07/01/2015,99915,13,SMALL WORLD DAY NURSERY,M00681,10,2014
Allerdale Borough Council,15502,Supplies & Services,Legal Services,Land Registry Fees,30/12/2014,99916,3,HM LAND REGISTRY ,A00505,10,2014
Allerdale Borough Council,15502,Supplies & Services,Legal Services,Land Registry Fees,23/12/2014,99917,36,HM LAND REGISTRY ,A00505,10,2014
Allerdale Borough Council,10401,Employee Costs,Licensing Pay Group,Agency Staff Costs,07/01/2015,99918,"2,515.57",G4S POLICING SOLUTIONS LTD,A02066,10,2014
Allerdale Borough Council,10401,Employee Costs,Carnegie Theatre,Agency Staff Costs,07/01/2015,99919,607.5,ADECCO RECRUITMENT,A00188,10,2014
Allerdale Borough Council,10202,Employee Costs,Human Resources Pay Group,Medical Screening,07/01/2015,99920,316.73,WELLWORK LTD,A00029,10,2014
Allerdale Borough Council,10202,Employee Costs,Human Resources Pay Group,Medical Screening,07/01/2015,99921,424.36,WELLWORK LTD,A00029,10,2014
Allerdale Borough Council,10401,Employee Costs,Carnegie Theatre,Agency Staff Costs,07/01/2015,99922,612.75,ADECCO RECRUITMENT,A00188,10,2014
Allerdale Borough Council,10202,Employee Costs,Human Resources Pay Group,Medical Screening,07/01/2015,99923,61.8,WELLWORK LTD,A00029,10,2014
Allerdale Borough Council,16101,Supplies & Services,Planning and Development,Statutory Notices,07/01/2015,99924,563.05,CUMBRIA CC - 3C STUDIO,A00070,10,2014
Allerdale Borough Council,16101,Supplies & Services,Planning and Development,Statutory Notices,07/01/2015,99925,520.46,CUMBRIA CC - 3C STUDIO,A00070,10,2014
Allerdale Borough Council,16101,Supplies & Services,Planning and Development,Statutory Notices,07/01/2015,99926,469.66,CUMBRIA CC - 3C STUDIO,A00070,10,2014
Allerdale Borough Council,16101,Supplies & Services,Planning and Development,Statutory Notices,07/01/2015,99927,427.07,CUMBRIA CC - 3C STUDIO,A00070,10,2014
Allerdale Borough Council,16101,Supplies & Services,Planning and Development,Statutory Notices,07/01/2015,99928,589.59,CUMBRIA CC - 3C STUDIO,A00070,10,2014
Allerdale Borough Council,16101,Supplies & Services,Planning and Development,Statutory Notices,07/01/2015,99929,971.03,CUMBRIA CC - 3C STUDIO,A00070,10,2014
Allerdale Borough Council,10202,Employee Costs,Human Resources Pay Group,Medical Screening,14/01/2015,99930,32.96,WELLWORK LTD,A00029,10,2014
Allerdale Borough Council,53101,Capital Expenditure,IT Costs (Allerdale Only),Purchase of Fixed Plant & Equip Capital,07/01/2015,99931,"13,330.03",NETCENTRIX LIMITED,A00106,10,2014
Allerdale Borough Council,15506,Supplies & Services,Contaminated Land Works,Professional Services,07/01/2015,99932,"3,680.00",HYDROCK CONTRACTING LTD T/A QDS REMEDIATION,C00151,10,2014
Allerdale Borough Council,15501,Supplies & Services,Food and Occupational Health,Consultants Fees,07/01/2015,99933,112.77,PUBLIC HEALTH ENGLAND,A01839,10,2014
Allerdale Borough Council,15103,Supplies & Services,KMAG Enhancement Activity,Purchase of Materials,07/01/2015,99934,130.5,PICTURE HANGING SYSTEMS LTD,A01990,10,2014
Allerdale Borough Council,14105,Transport,Asset Management Pay Group,"Fuel, Lubricants & Consumables",,99935,455.56,BP OIL UK LTD ,X00022,10,2014
Allerdale Borough Council,10401,Employee Costs,Licensing Pay Group,Agency Staff Costs,07/01/2015,99936,"2,987.00",G4S POLICING SOLUTIONS LTD,A02066,10,2014
Allerdale Borough Council,12402,Premises,Corporate Property Maintenance,Electricity,07/01/2015,99937,505.06,BRITISH GAS,X00039,10,2014
Allerdale Borough Council,15601,Supplies & Services,Revenue,Postage,07/01/2015,99938,300,ROYAL MAIL LETTERS,X00021,10,2014
Allerdale Borough Council,15702,Supplies & Services,Street Cleansing,Line Rentals,07/01/2015,99939,50.7,BRITISH TELECOMMUNICATIONS,X00004,10,2014
Allerdale Borough Council,12408,Premises,Corporate Property Maintenance,Water & Sewage,07/01/2015,99940,124.27,UNITED UTILITIES ,X00011,10,2014
Allerdale Borough Council,12408,Premises,Public Convenience Cleaning,Water & Sewage,07/01/2015,99941,21.46,UNITED UTILITIES ,X00011,10,2014
Allerdale Borough Council,12403,Premises,Corporate Property Maintenance,Gas,07/01/2015,99942,21.54,BRITISH GAS,X00040,10,2014
Allerdale Borough Council,15704,Supplies & Services,IT Services,Mobile Phones,07/01/2015,99943,"1,102.84",VODAFONE,A00551,10,2014
Allerdale Borough Council,12402,Premises,Corporate Property Maintenance,Electricity,07/01/2015,99944,-505.06,BRITISH GAS,X00039,10,2014
Allerdale Borough Council,12402,Premises,Corporate Property Maintenance,Electricity,07/01/2015,99945,548.45,SOUTHERN ELECTRIC,X00018,10,2014
Allerdale Borough Council,12402,Premises,Corporate Property Maintenance,Electricity,07/01/2015,99946,161.96,BRITISH GAS,X00039,10,2014
Allerdale Borough Council,12402,Premises,Corporate Property Maintenance,Electricity,07/01/2015,99947,-161.96,BRITISH GAS,X00039,10,2014
Allerdale Borough Council,12101,Premises,Corporate Property Maintenance,External Maintenance & Decoration,07/01/2015,99964,325,BINGHAM YATES & PARTNER,A00003,10,2014
Allerdale Borough Council,15503,Supplies & Services,Legal Services,Court and Tribunal Costs,07/01/2015,99965,140,HMCTS,A01237,10,2014
Allerdale Borough Council,15510,Supplies & Services,Confidential Waste,Disposal of Waste,14/01/2015,99966,241.75,J DUFFY LTD T/A PW CONF BUS SERVICES,A01846,10,2014
Allerdale Borough Council,15506,Supplies & Services,KMAG Enhancement Activity,Professional Services,14/01/2015,99967,660.35,MARLER HALEY LIMITED,A02119,10,2014
Allerdale Borough Council,20102,Third Party Payments,Recycling,Horticulture (Obsolete),07/01/2015,99968,308,THOMPSONS PLANT HIRE LTD,A00262,10,2014
Allerdale Borough Council,15502,Supplies & Services,Legal Services,Land Registry Fees,07/01/2015,99969,40,HM LAND REGISTRY,A00834,10,2014
Allerdale Borough Council,20305,Third Party Payments,Sports & Leisure Centres,Contract Services-Leisure Centres,07/01/2015,99970,"50,600.00",CARLISLE LEISURE LTD,A00136,10,2014
Allerdale Borough Council,15508,Supplies & Services,Licensing Service,Subscriptions,28/01/2015,99971,318.5,INSTITUTE OF LEGAL EXECUTIVES,A00711,10,2014
Allerdale Borough Council,20100,Third Party Payments,Museums,Budget-Partnership Services,07/01/2015,99972,"7,500.00",WORKINGTON HERITAGE GROUP LTD,A00339,10,2014
Allerdale Borough Council,15103,Supplies & Services,KMAG Enhancement Activity,Purchase of Materials,14/01/2015,99973,45,AZTEC SIGNS,A02010,10,2014
Allerdale Borough Council,15503,Supplies & Services,Legal Services,Court and Tribunal Costs,07/01/2015,99974,210,HMCTS,A01237,10,2014
Allerdale Borough Council,20102,Third Party Payments,Recycling,Horticulture (Obsolete),14/01/2015,99975,461.64,FCC RECYCLING (UK) LTD (ALCO),A00185,10,2014
Allerdale Borough Council,20102,Third Party Payments,Recycling,Horticulture (Obsolete),07/01/2015,99976,831.92,FCC RECYCLING (UK) LTD (ALCO),A00185,10,2014
Allerdale Borough Council,20305,Third Party Payments,Maryport Wave,Contract Services-Leisure Centres,07/01/2015,99977,"12,500.00",CARLISLE LEISURE LTD,A00136,10,2014
Allerdale Borough Council,15604,Supplies & Services,Document Management Pay Group,Franking Machine refills,07/01/2015,99978,"10,000.00",FP TELESET,A00428,10,2014
Allerdale Borough Council,81608,Balance Sheet,General Fund,Legal Provisions,07/01/2015,99979,885,CUMBRIA COUNTY COUNCIL,M00682,10,2014
Allerdale Borough Council,16101,Supplies & Services,Planning and Development,Statutory Notices,07/01/2015,99980,-605.02,CUMBRIA CC - 3C STUDIO,A00070,10,2014
Allerdale Borough Council,16101,Supplies & Services,Planning and Development,Statutory Notices,07/01/2015,99981,-650.85,CUMBRIA CC - 3C STUDIO,A00070,10,2014
Allerdale Borough Council,15550,Supplies & Services,Bereavement Services,General-Service Related Fees,14/01/2015,99983,500,TOM EDGARS FUNERAL SERVICES,A02123,10,2014
Allerdale Borough Council,15506,Supplies & Services,KMAG Enhancement Activity,Professional Services,14/01/2015,99984,126.04,KESWICK MUSEUM & ART GALLERY,A00337,10,2014
Allerdale Borough Council,15103,Supplies & Services,KMAG Enhancement Activity,Purchase of Materials,14/01/2015,99985,150,KESWICK MUSEUM & ART GALLERY,A00337,10,2014
Allerdale Borough Council,15506,Supplies & Services,KMAG Enhancement Activity,Professional Services,14/01/2015,99986,55.2,KESWICK MUSEUM & ART GALLERY,A00337,10,2014
Allerdale Borough Council,16302,Supplies & Services,Customer & Transformation Programme,Room Hire,14/01/2015,99987,50,COCKERMOUTH TOWN COUNCIL,A00586,10,2014
Allerdale Borough Council,20108,Third Party Payments,Corporate Management,Audit Commission,14/01/2015,99988,900,GRANT THORNTON UK LLP,A01736,10,2014
Allerdale Borough Council,10401,Employee Costs,Planning and Development,Agency Staff Costs,14/01/2015,99989,"1,391.25",MATCHTECH UK LTD,A02117,10,2014
Allerdale Borough Council,15501,Supplies & Services,Food and Occupational Health,Consultants Fees,28/01/2015,99990,104,Redacted information - included personal information ,A01969,10,2014
Allerdale Borough Council,15303,Supplies & Services,Food and Occupational Health,Laundry,14/01/2015,99991,79.24,BERENDSEN UK LTD,A00027,10,2014
Allerdale Borough Council,14101,Transport,Shared IT Services Pay Group,Vehicle Leasing,,99992,199,ARNOLD CLARK AUTOMOBILES LTD,A01551,10,2014
Allerdale Borough Council,15101,Supplies & Services,Finance and Accounting Pay Group,Equipment Costs,14/01/2015,99993,190,CENTRIC OFFICE SOLUTIONS,A00065,10,2014
Allerdale Borough Council,15404,Supplies & Services,Legal Services,Reference Materials,14/01/2015,99994,261,SWEET & MAXWELL (THOMSON REUTERS),A00028,10,2014
Allerdale Borough Council,16003,Supplies & Services,Customer Services Pay Group,Security of Cash Movements,28/01/2015,99995,437.56,SECURITY PLUS LIMITED,A00503,10,2014
Allerdale Borough Council,12305,Premises,Corporate Property Maintenance,Inspections and Services,14/01/2015,99996,430,GILGEN DOOR SYSTEMS UK LTD,A00542,10,2014
Allerdale Borough Council,12103,Premises,Coastal Protection and Inland Flooding,Grounds Maintenance,14/01/2015,99997,262.75,AST SIGNS LIMITED,A01473,10,2014
Allerdale Borough Council,15202,Supplies & Services,Carnegie Theatre,Bar Provision,14/01/2015,99998,535.2,CLASSIC DRINKS LIMITED,A00413,10,2014
Allerdale Borough Council,15501,Supplies & Services,Planning and Development,Consultants Fees,14/01/2015,99999,416,CAPITA (TREE/HEDGEROWS),A00683,10,2014
Allerdale Borough Council,12203,Premises,Public Convenience Cleaning,Plumbing and Heating Maintenance,14/01/2015,100000,317,Redacted information - included personal information ,C00008,10,2014
Allerdale Borough Council,16150,Supplies & Services,Town Centre Management,General Promotions,21/01/2015,100001,"3,000.00",CN EVENTS MANAGEMENT,A01099,10,2014
Allerdale Borough Council,16150,Supplies & Services,"The Hub, Workington Town Centre",General Promotions,21/01/2015,100002,360,CUMBRIAN NEWSPAPERS LIMITED,A00869,10,2014
Allerdale Borough Council,16302,Supplies & Services,Members Services,Room Hire,14/01/2015,100003,524.1,ENERGUS,A01119,10,2014
Allerdale Borough Council,12101,Premises,Car Parks Inspection & Maintenance,External Maintenance & Decoration,14/01/2015,100004,"1,184.00",Redacted information - included personal information ,C00008,10,2014
Allerdale Borough Council,15401,Supplies & Services,Document Management Pay Group,General Stationery,28/01/2015,100005,144.24,LYRECO,A00043,10,2014
Allerdale Borough Council,15401,Supplies & Services,Document Management Pay Group,General Stationery,28/01/2015,100006,152.32,LYRECO,A00043,10,2014
Allerdale Borough Council,15104,Supplies & Services,Bereavement Services,Supplies for Resale,14/01/2015,100007,108.5,GRANART,A00644,10,2014
Allerdale Borough Council,15401,Supplies & Services,Document Management Pay Group,General Stationery,28/01/2015,100008,78.22,LYRECO,A00043,10,2014
Allerdale Borough Council,15301,Supplies & Services,Parking Services Pay Group,Uniforms,14/01/2015,100009,7.5,KELTIC,A00017,10,2014
Allerdale Borough Council,26000,Earmarked Reserves,Health & Safety in Graveyards,Budget-Expd funded from Reserve,14/01/2015,100010,"3,156.00",ABLE MEMORIALS LTD,A01035,10,2014
Allerdale Borough Council,15101,Supplies & Services,Corporate Property Maintenance,Equipment Costs,21/01/2015,100011,163.2,TELK LTD,A01670,10,2014
Allerdale Borough Council,15500,Supplies & Services,Disposal of Allerdale Sites,Budget-Services,14/01/2015,100012,170,PFK PLC LAND AGENCY,A00954,10,2014
Allerdale Borough Council,14202,Transport,Members Services,Hire Car and petrol,14/01/2015,100013,80,KEN ROUTLEDGE TRAVEL LTD,A00192,10,2014
Allerdale Borough Council,15202,Supplies & Services,Carnegie Theatre,Bar Provision,21/01/2015,100014,127.96,DRINKS EXPRESS,A01862,10,2014
Allerdale Borough Council,15401,Supplies & Services,Document Management Pay Group,General Stationery,14/01/2015,100015,235,FIRPRESS PRINTERS,A00063,10,2014
Allerdale Borough Council,14150,Transport,Gates Travel,General-Council Vehicles (Non-Capital),28/01/2015,100016,252.4,GATES TRAVEL,A01525,10,2014
Allerdale Borough Council,15101,Supplies & Services,Corporate Property Maintenance,Equipment Costs,13/01/2015,100017,164.9,BOOKER CASH & CARRY ,A01419,10,2014
Allerdale Borough Council,12307,Premises,Corporate Property Maintenance,Fixtures and Fittings,28/01/2015,100018,421.86,EXPRESS ELEVATORS LTD,A00717,10,2014
Allerdale Borough Council,14202,Transport,Members Services,Hire Car and petrol,14/01/2015,100019,110,KEN ROUTLEDGE TRAVEL LTD,A00192,10,2014
Allerdale Borough Council,15513,Supplies & Services,Carnegie Theatre,Subcontractors - General,14/01/2015,100020,150,R W AUDIO,C00059,10,2014
Allerdale Borough Council,10601,Employee Costs,Solway Wetlands Project,External Courses & Seminar Fees,14/01/2015,100021,590,NAAONB,A00735,10,2014
Allerdale Borough Council,10202,Employee Costs,Health and Safety,Medical Screening,14/01/2015,100022,85,SPECSAVERS,A00026,10,2014
Allerdale Borough Council,10603,Employee Costs,Human Resources Pay Group,Hire of Training Equipment and Resources,21/01/2015,100023,481.05,Redacted information - included personal information ,A01982,10,2014
Allerdale Borough Council,14105,Transport,Public Convenience Cleaning,"Fuel, Lubricants & Consumables",,100024,71.33,BP OIL UK LTD,X00022,10,2014
Allerdale Borough Council,14105,Transport,Parking Services Pay Group,"Fuel, Lubricants & Consumables",,100025,137.61,BP OIL UK LTD,X00022,10,2014
Allerdale Borough Council,16350,Supplies & Services,Chief Executive,Miscellaneous Expenses,,100026,104.05,BARCLAYCARD COMMERCIAL,X00207,10,2014
Allerdale Borough Council,16102,Supplies & Services,Supporting Allerdale Town Centres,Regeneration Initiatives,14/01/2015,100027,"2,963.16",FIRST IMAGE SIGNS LTD,A01840,10,2014
Allerdale Borough Council,14105,Transport,Animal Welfare,"Fuel, Lubricants & Consumables",14/01/2015,100028,80,YARL HYDRACENTRE LIMITED,A00704,10,2014
Allerdale Borough Council,15550,Supplies & Services,Out of Hours Telephones,General-Service Related Fees,21/01/2015,100029,559.15,ORBIS PROTECT LTD (PREV SITEXORBIS LIMITED),A00679,10,2014
Allerdale Borough Council,12101,Premises,Public Convenience Cleaning,External Maintenance & Decoration,14/01/2015,100030,252,Redacted information - included personal information ,C00008,10,2014
Allerdale Borough Council,15808,Supplies & Services,Multi-functional Printers,Computer Consumables,28/01/2015,100031,110,LYRECO,A00043,10,2014
Allerdale Borough Council,15505,Supplies & Services,Planning and Development,Licences,28/01/2015,100032,52.24,CENTREMAPS,A00512,10,2014
Allerdale Borough Council,12405,Premises,Customer Services Pay Group,Rentals and Lease Charges,04/02/2015,100033,591.94,SOLWAY PLAIN FUTURES LTD,A01194,10,2014
Allerdale Borough Council,15103,Supplies & Services,Rolling Mill Project,Purchase of Materials,21/01/2015,100034,"6,535.00",TATA STEEL UK LTD TRADING AS TATA STEEL PROJECTS,A02106,10,2014
Allerdale Borough Council,15101,Supplies & Services,Carnegie Theatre,Equipment Costs,14/01/2015,100035,84.35,CPC,A01872,10,2014
Allerdale Borough Council,15810,Supplies & Services,Carnegie Theatre,Software Licences,14/01/2015,100036,21.32,TICKETS.COM LTD,A00371,10,2014
Allerdale Borough Council,15810,Supplies & Services,Carnegie Theatre,Software Licences,21/01/2015,100037,26.24,TICKETS.COM LTD,A00371,10,2014
Allerdale Borough Council,15401,Supplies & Services,Carnegie Theatre,General Stationery,28/01/2015,100038,59.49,LYRECO,A00043,10,2014
Allerdale Borough Council,20150,Third Party Payments,Footways,General Partnership Service Fees,14/01/2015,100039,260,Redacted information - included personal information ,A00242,10,2014
Allerdale Borough Council,73102,Holding and Control Accounts,Busy Bees Childcare Scheme,Holding Accounts General - Expenditure,14/01/2015,100040,59.62,COMPUTERSHARE VOUCHER SERVICES,A00991,10,2014
Allerdale Borough Council,73102,Holding and Control Accounts,Busy Bees Childcare Scheme,Holding Accounts General - Expenditure,14/01/2015,100041,"1,084.00",COMPUTERSHARE VOUCHER SERVICES,A00991,10,2014
Allerdale Borough Council,15501,Supplies & Services,Delivering Jobs and Growth,Consultants Fees,14/01/2015,100042,990,LAND + PLACE LTD,A02050,10,2014
Allerdale Borough Council,15501,Supplies & Services,Delivering Jobs and Growth,Consultants Fees,14/01/2015,100043,675,LAND + PLACE LTD,A02050,10,2014
Allerdale Borough Council,15203,Supplies & Services,Members Services,Catering Costs and Consumables,14/01/2015,100044,42.5,CARLISLE LEISURE LTD,A00136,10,2014
Allerdale Borough Council,15101,Supplies & Services,Public Building Cleaning,Equipment Costs,14/01/2015,100045,25.8,JEWSON LIMITED,A01673,10,2014
Allerdale Borough Council,12403,Premises,Homelessness,Gas,28/01/2015,100046,50,MEPOS LIMITED,A01286,10,2014
Allerdale Borough Council,15802,Supplies & Services,Parking Services Pay Group,Hardware Maintenance,14/01/2015,100047,58.08,RELIANCE HIGH-TECH LTD,C00123,10,2014
Allerdale Borough Council,15101,Supplies & Services,Public Building Cleaning,Equipment Costs,14/01/2015,100048,51.6,JEWSON LIMITED,A01673,10,2014
Allerdale Borough Council,15601,Supplies & Services,Benefits,Postage,14/01/2015,100049,"1,122.10",ROYAL MAIL LETTERS,X00021,10,2014
Allerdale Borough Council,15702,Supplies & Services,Crime Prevention,Line Rentals,14/01/2015,100050,28.36,BRITISH TELECOMMUNICATIONS,X00004,10,2014
Allerdale Borough Council,15601,Supplies & Services,Benefits,Postage,14/01/2015,100051,"1,339.84",ROYAL MAIL LETTERS,X00021,10,2014
Allerdale Borough Council,15513,Supplies & Services,Environmental Initiatives,Subcontractors - General,14/01/2015,100052,630,ISS WATERERS LANDSCAPE,C00044,10,2014
Allerdale Borough Council,15101,Supplies & Services,Recycling,Equipment Costs,,100053,"6,199.01",BPI RECYCLED PRODUCTS,A00318,10,2014
Allerdale Borough Council,15805,Supplies & Services,IT Services,Computer Network,28/01/2015,100054,50,VODAFONE (PREV CABLE & WIRELESS),A00934,10,2014
Allerdale Borough Council,12402,Premises,Corporate Property Maintenance,Electricity,14/01/2015,100055,54.42,EON,X00016,10,2014
Allerdale Borough Council,15804,Supplies & Services,IT Services,Computer Data Lines B.T.,28/01/2015,100056,"1,642.21",VODAFONE (PREV CABLE & WIRELESS),A00934,10,2014
Allerdale Borough Council,15703,Supplies & Services,IT Services,Call Charges,14/01/2015,100057,539.66,VODAFONE (PREV CABLE & WIRELESS),A00934,10,2014
Allerdale Borough Council,21150,Transfer Payments,Environmental Initiatives,General Grants,14/01/2015,100058,"2,500.00",CUMBRIA CC - GENERAL,A00066,10,2014
Allerdale Borough Council,20110,Third Party Payments,Corporate Improvement Team,Other Local Authorities,14/01/2015,100059,775.13,CUMBRIA CC - GENERAL,A00066,10,2014
Allerdale Borough Council,15804,Supplies & Services,IT Services,Computer Data Lines B.T.,28/01/2015,100060,"3,041.48",VODAFONE (PREV CABLE & WIRELESS),A00934,10,2014
Allerdale Borough Council,21150,Transfer Payments,Delivering Jobs and Growth,General Grants,14/01/2015,100061,"18,300.00",INSPIRA,A01944,10,2014
Allerdale Borough Council,12403,Premises,Corporate Property Maintenance,Gas,14/01/2015,100062,11.66,EON ,X00016,10,2014
Allerdale Borough Council,15500,Supplies & Services,Disposal of Allerdale Sites,Budget-Services,14/01/2015,100063,370,CARIGIET COWEN,A01190,10,2014
Allerdale Borough Council,16350,Supplies & Services,Homelessness,Miscellaneous Expenses,14/01/2015,100064,400,BR PROPERTIES MANAGEMENT (SHIRLEY BARTLETT),M00239,10,2014
Allerdale Borough Council,16350,Supplies & Services,Homelessness,Miscellaneous Expenses,14/01/2015,100065,400,Redacted information - included personal information ,M00683,10,2014
Allerdale Borough Council,16150,Supplies & Services,Solway Wetlands Project,General Promotions,14/01/2015,100066,100.5,ALLERDALE BOROUGH COUNCIL - AONB,X00216,10,2014
Allerdale Borough Council,15101,Supplies & Services,Parks Development,Equipment Costs,14/01/2015,100067,256.25,ISS WATERERS LANDSCAPE,C00044,10,2014
Allerdale Borough Council,15100,Supplies & Services,Parks and Grounds Maintenance,"Budget-Equipment, Furniture & Materials",04/02/2015,100068,152.64,THE HELPING HAND COMPANY,A00897,10,2014
Allerdale Borough Council,15508,Supplies & Services,Risk Management,Subscriptions,28/01/2015,100069,160,ALARM,A00619,10,2014
Allerdale Borough Council,15506,Supplies & Services,Restructure Opt - Carnegie/HTM,Professional Services,21/01/2015,100070,"1,500.00",LAMONT PRIDMORE (WEST CUMBRIA) LIMITED,A02105,10,2014
Allerdale Borough Council,12307,Premises,Corporate Property Maintenance,Fixtures and Fittings,28/01/2015,100071,700,SHERIDAN LIFTS LIMITED,C00120,10,2014
Allerdale Borough Council,15102,Supplies & Services,Domestic Waste,Equipment Repair & Maintenance,14/01/2015,100072,630.1,Redacted information - included personal information ,A00176,10,2014
Allerdale Borough Council,15506,Supplies & Services,Food and Occupational Health,Professional Services,14/01/2015,100073,114,COOMARA LTD,A01991,10,2014
Allerdale Borough Council,15401,Supplies & Services,Building Control - Chargeable,General Stationery,21/01/2015,100074,68.6,HEATONS OFFICE SOLUTION (PREV LAKELAND/INTEGRITY),A00069,10,2014
Allerdale Borough Council,15401,Supplies & Services,Planning and Development,General Stationery,21/01/2015,100075,68.59,HEATONS OFFICE SOLUTION (PREV LAKELAND/INTEGRITY),A00069,10,2014
Allerdale Borough Council,12305,Premises,Other Land & Buildings,Inspections and Services,14/01/2015,100076,60,PFK PLC LAND AGENCY,A00954,10,2014
Allerdale Borough Council,49983,Recharges,Electoral Registration,Postal & Printing Services (Indirect),14/01/2015,100077,439,ACCESS POINT LIMITED,A02107,10,2014
Allerdale Borough Council,15101,Supplies & Services,Public Convenience Cleaning,Equipment Costs,04/02/2015,100078,28.57,WF HYGIENE & CLEANING SUPPLIES,A01794,10,2014
Allerdale Borough Council,15500,Supplies & Services,Economic Regeneration,Budget-Services,28/01/2015,100079,330,BRIT ENERGY COAST BUSINESS CLUSTER,A01648,10,2014
Allerdale Borough Council,15508,Supplies & Services,Corporate Improvement Team,Subscriptions,28/01/2015,100080,"2,295.00",LOCAL INFORMATION UNIT LTD,A01881,10,2014
Allerdale Borough Council,15404,Supplies & Services,Finance and Accounting Pay Group,Reference Materials,14/01/2015,100081,110,CIPFA,A00572,10,2014
Allerdale Borough Council,15501,Supplies & Services,Food and Occupational Health,Consultants Fees,21/01/2015,100082,112.77,PUBLIC HEALTH ENGLAND,A01839,10,2014
Allerdale Borough Council,15102,Supplies & Services,Solway Coast AONB Core Funding,Equipment Repair & Maintenance,14/01/2015,100083,27.65,ASPATRIA FARMERS LIMITED,A00736,10,2014
Allerdale Borough Council,15401,Supplies & Services,Carnegie Theatre,General Stationery,14/01/2015,100084,15.25,HEATONS OFFICE SOLUTION (PREV LAKELAND/INTEGRITY),A00069,10,2014
Allerdale Borough Council,15502,Supplies & Services,Legal Services,Land Registry Fees,13/01/2015,100085,30,HM LAND REGISTRY ,A00505,10,2014
Allerdale Borough Council,12408,Premises,Public Convenience Cleaning,Water & Sewage,14/01/2015,100086,"1,847.33",UNITED UTILITIES ,X00011,10,2014
Allerdale Borough Council,12403,Premises,Corporate Property Maintenance,Gas,14/01/2015,100087,"3,100.80",BRITISH GAS,X00039,10,2014
Allerdale Borough Council,15101,Supplies & Services,Off-street - Owned,Equipment Costs,28/01/2015,100088,215.79,COBALT TELEPHONE TECHNOLOGY,A01008,10,2014
Allerdale Borough Council,16004,Supplies & Services,Banking and Interest,All Pay Transaction Costs,28/01/2015,100089,27.12,ALLPAY.NET LIMITED,A00714,10,2014
Allerdale Borough Council,16004,Supplies & Services,Banking and Interest,All Pay Transaction Costs,28/01/2015,100090,23.1,ALLPAY.NET LIMITED,A00714,10,2014
Allerdale Borough Council,16004,Supplies & Services,Banking and Interest,All Pay Transaction Costs,28/01/2015,100091,28.27,ALLPAY.NET LIMITED,A00714,10,2014
Allerdale Borough Council,16004,Supplies & Services,Banking and Interest,All Pay Transaction Costs,28/01/2015,100092,17.5,ALLPAY.NET LIMITED,A00714,10,2014
Allerdale Borough Council,16004,Supplies & Services,Banking and Interest,All Pay Transaction Costs,28/01/2015,100093,18.13,ALLPAY.NET LIMITED,A00714,10,2014
Allerdale Borough Council,16004,Supplies & Services,Banking and Interest,All Pay Transaction Costs,28/01/2015,100094,17.5,ALLPAY.NET LIMITED,A00714,10,2014
Allerdale Borough Council,16004,Supplies & Services,Banking and Interest,All Pay Transaction Costs,28/01/2015,100095,31.78,ALLPAY.NET LIMITED,A00714,10,2014
Allerdale Borough Council,16004,Supplies & Services,Banking and Interest,All Pay Transaction Costs,28/01/2015,100096,27.45,ALLPAY.NET LIMITED,A00714,10,2014
Allerdale Borough Council,16004,Supplies & Services,Banking and Interest,All Pay Transaction Costs,28/01/2015,100097,61.79,ALLPAY.NET LIMITED,A00714,10,2014
Allerdale Borough Council,15703,Supplies & Services,Carnegie Theatre,Call Charges,14/01/2015,100098,"1,282.04",BRITISH TELECOMMUNICATIONS,X00004,10,2014
Allerdale Borough Council,16150,Supplies & Services,Solway AONB Other Projects,General Promotions,14/01/2015,100099,42,CARRS BILLINGTON AGRICULTURE,A00884,10,2014
Allerdale Borough Council,33121,Income,Off-street - Owned,Excess Charges - Car Parks Income,14/01/2015,100100,125,Redacted information - included personal information ,M00687,10,2014
Allerdale Borough Council,21150,Transfer Payments,Festivals & Events,General Grants,14/01/2015,100101,450,WORKINGTON ROTARY CLUB,M00686,10,2014
Allerdale Borough Council,21150,Transfer Payments,Festivals & Events,General Grants,14/01/2015,100102,630,CUMBRIA COUNCIL FOR VOLUNTARY SERVICE EWANRIGG LOCAL TRUST,M00685,10,2014
Allerdale Borough Council,54105,Capital Expenditure,Cluster of Empty Homes,Grants  Private Individuals (Capital),14/01/2015,100103,"7,140.71",Redacted information - included personal information ,M00684,10,2014
Allerdale Borough Council,16102,Supplies & Services,Supporting Allerdale Town Centres,Regeneration Initiatives,14/01/2015,100104,"5,000.00",SILLOTH T.C.,X00092,10,2014
Allerdale Borough Council,54105,Capital Expenditure,Disabled Facilities Grants,Grants  Private Individuals (Capital),14/01/2015,100105,"9,308.47",W W BUILDERS LIMITED,X00212,10,2014
Allerdale Borough Council,54105,Capital Expenditure,Disabled Facilities Grants,Grants  Private Individuals (Capital),14/01/2015,100106,"3,438.50",TOTAL HYGIENE LTD,X00151,10,2014
Allerdale Borough Council,54105,Capital Expenditure,Disabled Facilities Grants,Grants  Private Individuals (Capital),14/01/2015,100107,"2,609.97",MAYSON BROS LTD,X00132,10,2014
Allerdale Borough Council,54105,Capital Expenditure,Disabled Facilities Grants,Grants  Private Individuals (Capital),14/01/2015,100108,"3,220.00",HANDICARE ACCESSIBILITY LTD,X00211,10,2014
Allerdale Borough Council,33150,Income,Credit Union,Other Fees Income,14/01/2015,100109,"1,200.00",THE ALLERDALE CREDIT UNION,A00493,10,2014
Allerdale Borough Council,21150,Transfer Payments,Festivals & Events,General Grants,14/01/2015,100110,900,KIRKGATE ARTS,A01090,10,2014
Allerdale Borough Council,16150,Supplies & Services,Solway Wetlands Project,General Promotions,14/01/2015,100111,89.99,Redacted information - included personal information ,M00645,10,2014
Allerdale Borough Council,20108,Third Party Payments,Corporate Management,Audit Commission,14/01/2015,100112,"15,817.50",GRANT THORNTON UK LLP,A01736,10,2014
Allerdale Borough Council,15202,Supplies & Services,Carnegie Theatre,Bar Provision,14/01/2015,100113,7.46,SOLWAY HEATERS LTD,A00305,10,2014
Allerdale Borough Council,15202,Supplies & Services,Carnegie Theatre,Bar Provision,14/01/2015,100114,11.84,SOLWAY HEATERS LTD,A00305,10,2014
Allerdale Borough Council,14105,Transport,Solway AONB Other Projects,"Fuel, Lubricants & Consumables",14/01/2015,100115,100,ISS WATERERS LANDSCAPE,C00044,10,2014
Allerdale Borough Council,16301,Supplies & Services,KMAG Enhancement Activity,Reimbursement,14/01/2015,100116,"1,090.08",KESWICK MUSEUM & ART GALLERY,A00337,10,2014
Allerdale Borough Council,15512,Supplies & Services,Animal Welfare,Kennelling,14/01/2015,100117,"2,641.00",WHINMILL FARM CANINE CENTRE,A00117,10,2014
Allerdale Borough Council,12302,Premises,Solway Coast AONB Core Funding,Building Cleaning,28/01/2015,100118,63.3,ORIAN SOLUTIONS LTD,A01814,10,2014
Allerdale Borough Council,21150,Transfer Payments,Museums,General Grants,14/01/2015,100119,"6,000.00",KESWICK MUSEUM & ART GALLERY,A00337,10,2014
Allerdale Borough Council,15101,Supplies & Services,Recycling,Equipment Costs,14/01/2015,100120,"3,600.00",UK CONTAINER MAINTENANCE,A01889,10,2014
Allerdale Borough Council,20102,Third Party Payments,Recycling,Horticulture (Obsolete),21/01/2015,100121,497.76,FCC RECYCLING (UK) LTD (ALCO),A00185,10,2014
Allerdale Borough Council,20102,Third Party Payments,Recycling,Horticulture (Obsolete),21/01/2015,100122,200.16,FCC RECYCLING (UK) LTD (ALCO),A00185,10,2014
Allerdale Borough Council,15510,Supplies & Services,Confidential Waste,Disposal of Waste,21/01/2015,100123,28,J DUFFY LTD T/A PW CONF BUS SERVICES,A01846,10,2014
Allerdale Borough Council,15510,Supplies & Services,Confidential Waste,Disposal of Waste,21/01/2015,100124,7,J DUFFY LTD T/A PW CONF BUS SERVICES,A01846,10,2014
Allerdale Borough Council,12405,Premises,Homelessness,Rentals and Lease Charges,04/02/2015,100125,"9,899.37",DERWENT & SOLWAY (BACS &DIRECT DEBIT),A00219,10,2014
Allerdale Borough Council,16150,Supplies & Services,Solway Wetlands Project,General Promotions,04/02/2015,100126,165,CRAVEN COLLEGE,A02126,10,2014
Allerdale Borough Council,15101,Supplies & Services,Recycling,Equipment Costs,21/01/2015,100127,135,FIRPRESS PRINTERS,A00063,10,2014
Allerdale Borough Council,20102,Third Party Payments,Recycling,Horticulture (Obsolete),14/01/2015,100128,125.48,THOMPSONS PLANT HIRE LTD,A00262,10,2014
Allerdale Borough Council,12103,Premises,Coastal Protection and Inland Flooding,Grounds Maintenance,21/01/2015,100129,180,FIRTH FABRICATION SERVICES,C00020,10,2014
Allerdale Borough Council,20150,Third Party Payments,Land Charges Service,General Partnership Service Fees,14/01/2015,100130,"1,291.66",LOCAL GOVERNMENT ASSOCIATION,A00686,10,2014
Allerdale Borough Council,20102,Third Party Payments,Recycling,Horticulture (Obsolete),14/01/2015,100131,807.24,FCC RECYCLING (UK) LTD (ALCO),A00185,10,2014
Allerdale Borough Council,20101,Third Party Payments,Recycling,Cleansing Contract,28/01/2015,100132,"1,150.50",CUMBRIA WASTE MANAGEMENT LTD,A01304,10,2014
Allerdale Borough Council,15506,Supplies & Services,KMAG Enhancement Activity,Professional Services,28/01/2015,100133,267.91,Redacted information - included personal information ,A02055,10,2014
Allerdale Borough Council,12203,Premises,Public Convenience Cleaning,Plumbing and Heating Maintenance,14/01/2015,100134,465,Redacted information - included personal information ,C00008,10,2014
Allerdale Borough Council,10601,Employee Costs,Training,External Courses & Seminar Fees,14/01/2015,100135,400,CUMBRIA CC,A00066,10,2014
Allerdale Borough Council,15808,Supplies & Services,Multi-functional Printers,Computer Consumables,04/02/2015,100136,199,ANTALIS,A00122,10,2014
Allerdale Borough Council,12301,Premises,Carnegie Theatre,Security,14/01/2015,100137,495,PM SECURITY ,A02111,10,2014
Allerdale Borough Council,81602,Balance Sheet,General Fund,Prov-Insurance Excess (Balance Sheet),,100138,890,BARCLAYCARD COMMERCIAL,X00207,10,2014
Allerdale Borough Council,70104,VAT,VAT Control Account,VAT - 20%,14/01/2015,100139,"14,484.49",WADAMS,A01476,10,2014
Allerdale Borough Council,70104,VAT,VAT Control Account,VAT - 20%,14/01/2015,100140,"1,040.40",Redacted information - included personal information ,M00688,10,2014
Allerdale Borough Council,14105,Transport,Parking Services Pay Group,"Fuel, Lubricants & Consumables",,100141,492.95,BP OIL UK LTD ,X00022,10,2014
Allerdale Borough Council,14105,Transport,Parking Services Pay Group,"Fuel, Lubricants & Consumables",,100142,506.15,BP OIL UK LTD,X00022,10,2014
Allerdale Borough Council,14105,Transport,Parking Services Pay Group,"Fuel, Lubricants & Consumables",,100143,156.45,BP OIL UK LTD,X00022,10,2014
Allerdale Borough Council,15811,Supplies & Services,Shared ICT Costs,Software Maintenance,21/01/2015,100144,"4,158.00",CREATIVE TECH MNGMNT SOLUTIONS,A00007,10,2014
Allerdale Borough Council,10401,Employee Costs,Planning and Development,Agency Staff Costs,21/01/2015,100145,"1,373.75",MATCHTECH UK LTD,A02117,10,2014
Allerdale Borough Council,15402,Supplies & Services,Multi-functional Printers,Photocopier Charges,21/01/2015,100146,"7,145.04",KONICA MINOLTA BUSINESS SOLUTIONS UK LTD,A01556,10,2014
Allerdale Borough Council,15603,Supplies & Services,Document Management Pay Group,Franking Machine Costs,28/01/2015,100147,300,THE MAILING ROOM (TMR EXECUTIVE AGENCY LTD),A00733,10,2014
Allerdale Borough Council,20150,Third Party Payments,Footways,General Partnership Service Fees,21/01/2015,100148,"29,260.10",CUMBRIA CC,A00066,10,2014
Allerdale Borough Council,12301,Premises,Corporate Property Maintenance,Security,21/01/2015,100149,102.75,PRO-TEC SYSTEMS,C00026,10,2014
Allerdale Borough Council,12101,Premises,Corporate Property Maintenance,External Maintenance & Decoration,21/01/2015,100150,"1,969.00",ISS WATERERS LANDSCAPE,C00044,10,2014
Allerdale Borough Council,12103,Premises,Coastal Protection and Inland Flooding,Grounds Maintenance,,100151,231,JOHN ELLIOTT LIMITED,C00023,10,2014
Allerdale Borough Council,12101,Premises,Corporate Property Maintenance,External Maintenance & Decoration,,100152,"3,129.75",JOHN ELLIOTT LIMITED,C00023,10,2014
Allerdale Borough Council,15401,Supplies & Services,Solway Coast AONB Core Funding,General Stationery,21/01/2015,100153,195,OFFICE TECHNOLOGY CORPORATION LTD,A01915,10,2014
Allerdale Borough Council,10601,Employee Costs,Solway Wetlands Project,External Courses & Seminar Fees,21/01/2015,100154,120,FIRST AID ACADEMY LTD,A01756,10,2014
Allerdale Borough Council,15514,Supplies & Services,Carnegie Theatre,Public Entertainment,21/01/2015,100155,51.9,MICO LIGHTING LTD,A00200,10,2014
Allerdale Borough Council,15514,Supplies & Services,Carnegie Theatre,Public Entertainment,21/01/2015,100156,95.85,CITY ELECTRICAL FACTORS,A00395,10,2014
Allerdale Borough Council,15506,Supplies & Services,KMAG Enhancement Activity,Professional Services,28/01/2015,100157,341.44,THE FIG TREE (GARSTANG) CIC,A02121,10,2014
Allerdale Borough Council,15514,Supplies & Services,Carnegie Theatre,Public Entertainment,21/01/2015,100158,849.95,MICO LIGHTING LTD,A00200,10,2014
Allerdale Borough Council,15501,Supplies & Services,Planning and Development,Consultants Fees,21/01/2015,100159,305,CAPITA (TREE/HEDGEROWS),A00683,10,2014
Allerdale Borough Council,16150,Supplies & Services,Solway AONB Other Projects,General Promotions,28/01/2015,100160,120,WEST HOUSE,A02020,10,2014
Allerdale Borough Council,15202,Supplies & Services,Carnegie Theatre,Bar Provision,21/01/2015,100161,857.06,DRINKS EXPRESS,A01862,10,2014
Allerdale Borough Council,15202,Supplies & Services,Carnegie Theatre,Bar Provision,21/01/2015,100162,181.41,DRINKS EXPRESS,A01862,10,2014
Allerdale Borough Council,16004,Supplies & Services,Banking and Interest,All Pay Transaction Costs,28/01/2015,100163,"1,525.11",ALLPAY.NET LIMITED,A00714,10,2014
Allerdale Borough Council,15100,Supplies & Services,Parks and Grounds Maintenance,"Budget-Equipment, Furniture & Materials",28/01/2015,100164,35.4,ARCO LIMITED,A00045,10,2014
Allerdale Borough Council,15300,Supplies & Services,Pest Control,Budget-Prov of Clothing and Equipment,21/01/2015,100165,75.07,ARCO LIMITED ,A00045,10,2014
Allerdale Borough Council,15100,Supplies & Services,Parks and Grounds Maintenance,"Budget-Equipment, Furniture & Materials",28/01/2015,100166,9.9,ARCO LIMITED ,A00045,10,2014
Allerdale Borough Council,15904,Supplies & Services,Members Services,Training,21/01/2015,100167,80,CARLISLE CITY COUNCIL,A00161,10,2014
Allerdale Borough Council,15601,Supplies & Services,Carnegie Theatre,Postage,,100168,264.97,BOOKER CASH & CARRY,A01419,10,2014
Allerdale Borough Council,12303,Premises,Corporate Property Maintenance,Window Cleaning,21/01/2015,100169,11.91,J A LEE WINDOWS,A00051,10,2014
Allerdale Borough Council,12303,Premises,Corporate Property Maintenance,Window Cleaning,21/01/2015,100170,81.16,J A LEE WINDOWS,A00051,10,2014
Allerdale Borough Council,12402,Premises,Corporate Property Maintenance,Electricity,21/01/2015,100171,92.57,N POWER,X00015,10,2014
Allerdale Borough Council,12402,Premises,Corporate Property Maintenance,Electricity,21/01/2015,100172,-30.37,N POWER,X00015,10,2014
Allerdale Borough Council,12402,Premises,Public Convenience Cleaning,Electricity,21/01/2015,100173,-238.95,N POWER,X00015,10,2014
Allerdale Borough Council,12402,Premises,Corporate Property Maintenance,Electricity,21/01/2015,100174,454.65,N POWER,X00015,10,2014
Allerdale Borough Council,12402,Premises,Corporate Property Maintenance,Electricity,21/01/2015,100175,-312.54,N POWER,X00015,10,2014
Allerdale Borough Council,12402,Premises,Public Convenience Cleaning,Electricity,21/01/2015,100176,-26.86,N POWER,X00015,10,2014
Allerdale Borough Council,12402,Premises,Public Convenience Cleaning,Electricity,21/01/2015,100177,261.27,N POWER,X00015,10,2014
Allerdale Borough Council,12402,Premises,Public Convenience Cleaning,Electricity,21/01/2015,100178,26.74,N POWER,X00015,10,2014
Allerdale Borough Council,12402,Premises,Corporate Property Maintenance,Electricity,21/01/2015,100179,5.12,N POWER,X00015,10,2014
Allerdale Borough Council,12402,Premises,Corporate Property Maintenance,Electricity,21/01/2015,100180,-5.24,N POWER,X00015,10,2014
Allerdale Borough Council,12402,Premises,Public Convenience Cleaning,Electricity,21/01/2015,100181,13.19,N POWER,X00015,10,2014
Allerdale Borough Council,12402,Premises,Public Convenience Cleaning,Electricity,21/01/2015,100182,43.18,N POWER,X00015,10,2014
Allerdale Borough Council,12402,Premises,Corporate Property Maintenance,Electricity,21/01/2015,100183,6.11,N POWER,X00015,10,2014
Allerdale Borough Council,12402,Premises,Corporate Property Maintenance,Electricity,21/01/2015,100184,278.89,N POWER,X00015,10,2014
Allerdale Borough Council,12402,Premises,Corporate Property Maintenance,Electricity,21/01/2015,100185,253.63,N POWER,X00015,10,2014
Allerdale Borough Council,12402,Premises,Car Parks Inspection & Maintenance,Electricity,21/01/2015,100186,325.87,N POWER,X00015,10,2014
Allerdale Borough Council,12402,Premises,Car Parks Inspection & Maintenance,Electricity,21/01/2015,100187,85.84,N POWER,X00015,10,2014
Allerdale Borough Council,12403,Premises,Corporate Property Maintenance,Gas,21/01/2015,100188,462.24,BRITISH GAS,X00039,10,2014
Allerdale Borough Council,20102,Third Party Payments,Recycling,Horticulture (Obsolete),21/01/2015,100189,-216,FCC RECYCLING (UK) LTD (ALCO),A00185,10,2014
Allerdale Borough Council,15805,Supplies & Services,Shared ICT Costs,Computer Network,,100190,60,THUS/DEMON PLC/ (VODAFONE),A00598,10,2014
Allerdale Borough Council,15101,Supplies & Services,Recycling,Equipment Costs,,100191,"-6,199.01",BPI RECYCLED PRODUCTS,A00318,10,2014
Allerdale Borough Council,15101,Supplies & Services,Confidential Waste,Equipment Costs,21/01/2015,100192,34.97,ARCO LIMITED - CARLISLE,A01448,10,2014
Allerdale Borough Council,10401,Employee Costs,Planning and Development,Agency Staff Costs,21/01/2015,100193,"1,551.25",THE OYSTER PARTNERSHIP LTD,C00118,10,2014
Allerdale Borough Council,10401,Employee Costs,Planning and Development,Agency Staff Costs,21/01/2015,100194,"1,593.33",THE OYSTER PARTNERSHIP LTD,C00118,10,2014
Allerdale Borough Council,10401,Employee Costs,Planning and Development,Agency Staff Costs,21/01/2015,100195,"1,593.75",THE OYSTER PARTNERSHIP LTD,C00118,10,2014
Allerdale Borough Council,15812,Supplies & Services,IT Services,Software Development,21/01/2015,100196,"1,381.43",JEC PROFESSIONAL SERVICES LTD,A01984,10,2014
Allerdale Borough Council,15501,Supplies & Services,Planning and Development,Consultants Fees,21/01/2015,100197,"2,524.13",WYG ENGINEERING LTD,A00155,10,2014
Allerdale Borough Council,15810,Supplies & Services,IT Services,Software Licences,21/01/2015,100198,"14,801.79",PHOENIX SOFTWARE LTD,A00229,10,2014
Allerdale Borough Council,15810,Supplies & Services,Carnegie Theatre,Software Licences,04/02/2015,100199,26.24,TICKETS.COM LTD,A00371,10,2014
Allerdale Borough Council,15810,Supplies & Services,Carnegie Theatre,Software Licences,04/02/2015,100200,27.88,TICKETS.COM LTD,A00371,10,2014
Allerdale Borough Council,15550,Supplies & Services,Carnegie Theatre,General-Service Related Fees,28/01/2015,100201,10,TRANSACTION NETWORK SERVICES (UK) LTD,A01778,10,2014
Allerdale Borough Council,15601,Supplies & Services,Carnegie Theatre,Postage,21/01/2015,100202,44.98,HAYES GARDEN WORLD LTD,A02103,10,2014
Allerdale Borough Council,14105,Transport,Parking Services Pay Group,"Fuel, Lubricants & Consumables",,100203,438.64,BP OIL UK LTD ,X00022,10,2014
Allerdale Borough Council,10401,Employee Costs,Carnegie Theatre,Agency Staff Costs,21/01/2015,100204,596.41,ADECCO RECRUITMENT,A00188,10,2014
Allerdale Borough Council,10401,Employee Costs,Carnegie Theatre,Agency Staff Costs,21/01/2015,100205,539.22,ADECCO RECRUITMENT,A00188,10,2014
Allerdale Borough Council,10401,Employee Costs,Carnegie Theatre,Agency Staff Costs,21/01/2015,100206,612.75,ADECCO RECRUITMENT,A00188,10,2014
Allerdale Borough Council,33101,Income,Land Charges Service,Charges for Services General Income,21/01/2015,100207,90,H F T GOUGH & CO,A01586,10,2014
Allerdale Borough Council,10401,Employee Costs,Commissioning Support Pay Group,Agency Staff Costs,21/01/2015,100208,"5,500.00",CASH FRIDAY/LORD SEARCH & SELECTION LTD,A02108,10,2014
Allerdale Borough Council,10401,Employee Costs,Elections,Agency Staff Costs,21/01/2015,100209,"4,223.20",ASSOCIATION OF ELECTORAL ADMIN,A00189,10,2014
Allerdale Borough Council,14100,Transport,Mayoral Services,Budget-Council Vehicles (Non-capital),21/01/2015,100210,30,ACE TAXIS,A01927,10,2014
Allerdale Borough Council,14101,Transport,Mayoral Services,Vehicle Leasing,21/01/2015,100211,20,ACE TAXIS,A01927,10,2014
Allerdale Borough Council,15550,Supplies & Services,Portfolio Based Priorities,General-Service Related Fees,21/01/2015,100212,"1,000.00",CENTRE FOR LEADERSHIP PERFORMANCE,A01504,10,2014
Allerdale Borough Council,12103,Premises,Coastal Protection and Inland Flooding,Grounds Maintenance,,100213,88,UK HARBOUR MASTERS ASS,A01583,10,2014
Allerdale Borough Council,12302,Premises,Carnegie Theatre,Building Cleaning,21/01/2015,100214,72,POLY PACK (CUMBRIA) LTD,A00230,10,2014
Allerdale Borough Council,16150,Supplies & Services,"The Hub, Workington Town Centre",General Promotions,28/01/2015,100215,175,Redacted information - included personal information ,A01408,10,2014
Allerdale Borough Council,14101,Transport,Mayoral Services,Vehicle Leasing,21/01/2015,100216,120,ACE TAXIS,A01927,10,2014
Allerdale Borough Council,10600,Employee Costs,Training,Budget-Training,21/01/2015,100217,400,SGL TRAINING LTD,A00355,10,2014
Allerdale Borough Council,12402,Premises,Corporate Property Maintenance,Electricity,21/01/2015,100218,"-1,438.05",N POWER ,X00015,10,2014
Allerdale Borough Council,12402,Premises,Corporate Property Maintenance,Electricity,21/01/2015,100219,"1,675.09",N POWER ,X00015,10,2014
Allerdale Borough Council,12402,Premises,Corporate Property Maintenance,Electricity,21/01/2015,100220,"1,860.00",N POWER ,X00015,10,2014
Allerdale Borough Council,12402,Premises,Corporate Property Maintenance,Electricity,21/01/2015,100221,"1,800.10",N POWER ,X00015,10,2014
Allerdale Borough Council,12402,Premises,Corporate Property Maintenance,Electricity,21/01/2015,100222,"1,971.46",N POWER ,X00015,10,2014
Allerdale Borough Council,35106,Income,Homelessness,Dwellings Income,21/01/2015,100223,122.4,ALLERDALE - CASH OFFICE,A00342,10,2014
Allerdale Borough Council,35106,Income,Homelessness,Dwellings Income,21/01/2015,100224,105,ALLERDALE - CASH OFFICE,A00342,10,2014
Allerdale Borough Council,12402,Premises,Corporate Property Maintenance,Electricity,21/01/2015,100225,"5,214.42",N POWER ,X00015,10,2014
Allerdale Borough Council,12402,Premises,Footways,Electricity,21/01/2015,100226,"5,124.08",N POWER,X00015,10,2014
Allerdale Borough Council,15506,Supplies & Services,Arts Development,Professional Services,04/02/2015,100227,"1,500.00",ROSEHILL ARTS TRUST LTD,A01372,10,2014
Allerdale Borough Council,15506,Supplies & Services,IT - New Initiatives,Professional Services,21/01/2015,100228,"9,135.00",CIVICA UK LIMITED,A00006,10,2014
Allerdale Borough Council,14101,Transport,Homelessness,Vehicle Leasing,21/01/2015,100229,171.74,DOBIES VAUXHALL,A00254,10,2014
Allerdale Borough Council,14101,Transport,Homelessness,Vehicle Leasing,21/01/2015,100230,171.74,DOBIES VAUXHALL,A00254,10,2014
Allerdale Borough Council,16350,Supplies & Services,Homelessness,Miscellaneous Expenses,21/01/2015,100231,485,GRISDALES LTD,M00497,10,2014
Allerdale Borough Council,10250,Employee Costs,Estates,General-Employee Related Expenses,21/01/2015,100232,506,Redacted information - included personal information ,M00397,10,2014
Allerdale Borough Council,16102,Supplies & Services,Supporting Allerdale Town Centres,Regeneration Initiatives,21/01/2015,100233,"1,700.00",KESWICK T.C.,X00080,10,2014
Allerdale Borough Council,15101,Supplies & Services,Homelessness,Equipment Costs,21/01/2015,100234,79.74,ALLERDALE BOROUGH COUNCIL,X00034,10,2014
Allerdale Borough Council,12302,Premises,Carnegie Theatre,Building Cleaning,21/01/2015,100235,147.55,CATERITE FOOD & WINE SERVICE,A00210,10,2014
Allerdale Borough Council,15506,Supplies & Services,IT - New Initiatives,Professional Services,21/01/2015,100236,741.5,CIVICA UK LIMITED,A00006,10,2014
Allerdale Borough Council,14101,Transport,Mayoral Services,Vehicle Leasing,21/01/2015,100237,70,ACE TAXIS,A01927,10,2014
Allerdale Borough Council,14101,Transport,Mayoral Services,Vehicle Leasing,21/01/2015,100238,210,ACE TAXIS,A01927,10,2014
Allerdale Borough Council,12202,Premises,Corporate Property Maintenance,Electrical Repairs and Service,04/02/2015,100239,"1,661.00",LED HUT LTD,A02053,10,2014
Allerdale Borough Council,81602,Balance Sheet,General Fund,Prov-Insurance Excess (Balance Sheet),21/01/2015,100240,816.9,THOMPSONS SOLICITORS,M00689,10,2014
Allerdale Borough Council,15502,Supplies & Services,Legal Services,Land Registry Fees,20/01/2015,100241,15,HM LAND REGISTRY,A00505,10,2014
Allerdale Borough Council,15811,Supplies & Services,Shared Revs & Bens IT Costs,Software Maintenance,28/01/2015,100242,903.42,CIVICA UK LIMITED,A00006,10,2014
Allerdale Borough Council,14104,Transport,Parking Services Pay Group,Repairs & Maintenance,28/01/2015,100243,206.08,FCC ENVIRONMENT SERVICES (FOCSA),A00085,10,2014
Allerdale Borough Council,14101,Transport,Shared IT Services Pay Group,Vehicle Leasing,,100244,199,ARNOLD CLARK AUTOMOBILES LTD,A01551,10,2014
Allerdale Borough Council,12306,Premises,Public Convenience Cleaning,Legionella Inspections and Services,04/02/2015,100245,"1,132.97",INTERSERVE FS UK LTD,A02113,10,2014
Allerdale Borough Council,15811,Supplies & Services,IT Services,Software Maintenance,30/01/2015,100246,140,SAGE (UK) LTD,A01911,10,2014
Allerdale Borough Council,15811,Supplies & Services,IT Services,Software Maintenance,16/01/2015,100247,264.99,SAGE (UK) LTD,A01911,10,2014
Allerdale Borough Council,15811,Supplies & Services,IT Services,Software Maintenance,30/01/2015,100248,264.99,SAGE (UK) LTD,A01911,10,2014
Allerdale Borough Council,10401,Employee Costs,Head of Governance,Agency Staff Costs,,100249,994.5,Redacted information - included personal information ,A01856,10,2014
Allerdale Borough Council,12303,Premises,Corporate Property Maintenance,Window Cleaning,28/01/2015,100250,239.55,J A LEE WINDOWS,A00051,10,2014
Allerdale Borough Council,10401,Employee Costs,Head of Governance,Agency Staff Costs,,100251,975,Redacted information - included personal information ,A01856,10,2014
Allerdale Borough Council,10401,Employee Costs,Head of Governance,Agency Staff Costs,,100252,"1,014.00",Redacted information - included personal information ,A01856,10,2014
Allerdale Borough Council,10401,Employee Costs,Head of Governance,Agency Staff Costs,,100253,"1,014.00",Redacted information - included personal information ,A01856,10,2014
Allerdale Borough Council,12302,Premises,Carnegie Theatre,Building Cleaning,28/01/2015,100254,219.62,FCC RECYCLING (UK) LTD (ALCO),A00185,10,2014
Allerdale Borough Council,12301,Premises,Carnegie Theatre,Security,28/01/2015,100255,270,PM SECURITY ,A02111,10,2014
Allerdale Borough Council,10601,Employee Costs,Training,External Courses & Seminar Fees,28/01/2015,100256,660.6,INNOVATION CENTRAL LTD,A02081,10,2014
Allerdale Borough Council,20304,Third Party Payments,Recycling,Contract Services-Recycling,28/01/2015,100257,"375,530.99",FCC ENVIRONMENT SERVICES (FOCSA),A00085,10,2014
Allerdale Borough Council,20102,Third Party Payments,Recycling,Horticulture (Obsolete),28/01/2015,100258,404.64,FCC RECYCLING (UK) LTD (ALCO),A00185,10,2014
Allerdale Borough Council,15800,Supplies & Services,Benefits,Budget-Computing Costs (Non Capital),28/01/2015,100259,802.7,CARLISLE CITY COUNCIL,A00161,10,2014
Allerdale Borough Council,12203,Premises,Corporate Property Maintenance,Plumbing and Heating Maintenance,28/01/2015,100260,800,Redacted information - included personal information ,C00008,10,2014
Allerdale Borough Council,14104,Transport,Public Convenience Cleaning,Repairs & Maintenance,28/01/2015,100261,17,FCC ENVIRONMENT SERVICES (FOCSA),A00085,10,2014
Allerdale Borough Council,12202,Premises,Corporate Property Maintenance,Electrical Repairs and Service,,100262,"1,250.00",LED HUT LTD,A02053,10,2014
Allerdale Borough Council,12402,Premises,Corporate Property Maintenance,Electricity,28/01/2015,100263,90,AMEY METERING LIMITED,A01503,10,2014
Allerdale Borough Council,12101,Premises,Corporate Property Maintenance,External Maintenance & Decoration,,100264,"1,900.00",JOHN ELLIOTT LIMITED,C00023,10,2014
Allerdale Borough Council,15811,Supplies & Services,IT Services,Software Maintenance,28/01/2015,100265,250,READSPEAKER LTD,A01464,10,2014
Allerdale Borough Council,12103,Premises,Harrington Harbour,Grounds Maintenance,,100266,"1,870.00",JOHN ELLIOTT LIMITED,C00023,10,2014
Allerdale Borough Council,12201,Premises,Corporate Property Maintenance,Internal Maintenance,,100267,450,DESIGN GRID LTD,A01627,10,2014
Allerdale Borough Council,15811,Supplies & Services,IT Services,Software Maintenance,,100268,"1,900.00",IDOX SOFTWARE LTD,A00291,10,2014
Allerdale Borough Council,15811,Supplies & Services,Shared ICT Costs,Software Maintenance,28/01/2015,100269,"12,291.00",NET-CTRL LTD,A02128,10,2014
Allerdale Borough Council,15101,Supplies & Services,Corporate Property Maintenance,Equipment Costs,28/01/2015,100270,108.8,TELK LTD,A01670,10,2014
Allerdale Borough Council,15501,Supplies & Services,Planning and Development,Consultants Fees,28/01/2015,100271,"1,225.00",KINGS CHAMBERS,A00348,10,2014
Allerdale Borough Council,51101,Capital Expenditure,New Leisure Facility,External Contractor Payments (Capital),28/01/2015,100272,"104,537.71",WILLMOTT DIXON CAPITAL WORKS LTD,C00127,10,2014
Allerdale Borough Council,14202,Transport,Internal Audit Pay Group,Hire Car and petrol,,100273,24.79,ENTERPRISE RENT A CAR,A01367,10,2014
Allerdale Borough Council,15602,Supplies & Services,Electoral Registration,Business Reply Licences,28/01/2015,100274,272.61,ROYAL MAIL LETTERS,X00021,10,2014
Allerdale Borough Council,15401,Supplies & Services,Planning and Development,General Stationery,,100275,-10.47,HEATONS OFFICE SOLUTION (PREV LAKELAND/INTEGRITY),A00069,10,2014
Allerdale Borough Council,12402,Premises,Corporate Property Maintenance,Electricity,28/01/2015,100276,14.89,BRITISH GAS,X00039,10,2014
Allerdale Borough Council,15703,Supplies & Services,Silloth TIC,Call Charges,28/01/2015,100277,133.75,BRITISH TELECOMMUNICATIONS,X00004,10,2014
Allerdale Borough Council,12408,Premises,Corporate Property Maintenance,Water & Sewage,28/01/2015,100278,15.84,UNITED UTILITIES,X00011,10,2014
Allerdale Borough Council,12408,Premises,Public Convenience Cleaning,Water & Sewage,28/01/2015,100279,348.67,UNITED UTILITIES,X00011,10,2014
Allerdale Borough Council,12408,Premises,Corporate Property Maintenance,Water & Sewage,28/01/2015,100280,169.51,UNITED UTILITIES,X00011,10,2014
Allerdale Borough Council,12408,Premises,Public Convenience Cleaning,Water & Sewage,28/01/2015,100281,290.95,UNITED UTILITIES,X00011,10,2014
Allerdale Borough Council,12408,Premises,Public Convenience Cleaning,Water & Sewage,28/01/2015,100282,28.31,UNITED UTILITIES,X00011,10,2014
Allerdale Borough Council,12408,Premises,Corporate Property Maintenance,Water & Sewage,28/01/2015,100283,77.32,UNITED UTILITIES,X00011,10,2014
Allerdale Borough Council,15703,Supplies & Services,Corporate Property Maintenance,Call Charges,28/01/2015,100284,539.9,BRITISH TELECOMMUNICATIONS,X00004,10,2014
Allerdale Borough Council,12402,Premises,Corporate Property Maintenance,Electricity,28/01/2015,100285,686.39,SOUTHERN ELECTRIC,X00018,10,2014
Allerdale Borough Council,15401,Supplies & Services,Planning and Development,General Stationery,,100286,10.47,HEATONS OFFICE SOLUTION (PREV LAKELAND/INTEGRITY),A00069,10,2014
Allerdale Borough Council,15702,Supplies & Services,Corporate Property Maintenance,Line Rentals,28/01/2015,100287,71.97,BRITISH TELECOMMUNICATIONS,X00004,10,2014
Allerdale Borough Council,12408,Premises,Corporate Property Maintenance,Water & Sewage,28/01/2015,100288,193.05,UNITED UTILITIES,X00011,10,2014
Allerdale Borough Council,15702,Supplies & Services,Corporate Property Maintenance,Line Rentals,28/01/2015,100289,50.61,BRITISH TELECOMMUNICATIONS,X00004,10,2014
Allerdale Borough Council,15203,Supplies & Services,Members Services,Catering Costs and Consumables,,100290,413.4,KENT AND SUSSEX VENDING,A02127,10,2014
Allerdale Borough Council,12101,Premises,Car Parks Inspection & Maintenance,External Maintenance & Decoration,,100291,"1,650.00",JOHN ELLIOTT LIMITED,C00023,10,2014
Allerdale Borough Council,12203,Premises,Corporate Property Maintenance,Plumbing and Heating Maintenance,04/02/2015,100292,98,O'CONNELL & BEAN (MECH&ELEC) LTD,C00078,10,2014
Allerdale Borough Council,12101,Premises,Harrington Harbour,External Maintenance & Decoration,04/02/2015,100293,"2,709.80",J & J ELECTRICAL (CUMBRIA) LTD,C00038,10,2014
Allerdale Borough Council,12201,Premises,Corporate Property Maintenance,Internal Maintenance,28/01/2015,100294,360,RAFFERTY DECORATING SERVICES LTD,C00117,10,2014
Allerdale Borough Council,10202,Employee Costs,Health and Safety,Medical Screening,28/01/2015,100295,170,SPECSAVERS,A00026,10,2014
Allerdale Borough Council,15808,Supplies & Services,Multi-functional Printers,Computer Consumables,28/01/2015,100296,40.3,ANTALIS,A00122,10,2014
Allerdale Borough Council,15103,Supplies & Services,Health and Safety,Purchase of Materials,04/02/2015,100297,45.2,CMUK VISUAL SAFETY LTD,A00370,10,2014
Allerdale Borough Council,15202,Supplies & Services,Carnegie Theatre,Bar Provision,28/01/2015,100298,389.44,GRAPEVINE WINE SERVICE,A00295,10,2014
Allerdale Borough Council,15102,Supplies & Services,Environmental Protection,Equipment Repair & Maintenance,,100299,165,CAMPBELL ASSOCIATES LTD,A01184,10,2014
Allerdale Borough Council,15811,Supplies & Services,Shared ICT Costs,Software Maintenance,28/01/2015,100300,"2,583.00",NET-CTRL LTD,A02128,10,2014
Allerdale Borough Council,12302,Premises,Carnegie Theatre,Building Cleaning,28/01/2015,100301,116.05,CATERITE FOOD & WINE SERVICE,A00210,10,2014
Allerdale Borough Council,15101,Supplies & Services,Asset Mgt & Capital Accounting System,Equipment Costs,,100302,"3,373.35",CIPFA BUSINESS LIMITED,A01653,10,2014
Allerdale Borough Council,15101,Supplies & Services,Asset Mgt & Capital Accounting System,Equipment Costs,,100303,625,CIPFA BUSINESS LIMITED,A01653,10,2014
Allerdale Borough Council,34150,Income,Homelessness,General Recovery of Other Costs-Income,28/01/2015,100308,50,Redacted information - included personal information ,M00662,10,2014
Allerdale Borough Council,16150,Supplies & Services,Solway Wetlands Project,General Promotions,28/01/2015,100309,8.15,Redacted information - included personal information ,M00679,10,2014
Allerdale Borough Council,15201,Supplies & Services,Chief Executive,Entertainment Of Visitors,,100310,18.22,BARCLAYCARD COMMERCIAL ,X00207,10,2014
Allerdale Borough Council,16301,Supplies & Services,Chief Executive,Reimbursement,,100311,17.08,BARCLAYCARD COMMERCIAL ,X00207,10,2014
Allerdale Borough Council,15101,Supplies & Services,Asset Mgt & Capital Accounting System,Equipment Costs,,100324,750,CIPFA BUSINESS LIMITED,A01791,10,2014
Allerdale Borough Council,15102,Supplies & Services,Environmental Protection,Equipment Repair & Maintenance,,100325,578,BRUEL & KJAER UK LTD,A00048,10,2014
Allerdale Borough Council,15303,Supplies & Services,Food and Occupational Health,Laundry,04/02/2015,100326,99.05,BERENDSEN UK LTD,A00027,10,2014
Allerdale Borough Council,15506,Supplies & Services,Environmental Protection,Professional Services,28/01/2015,100327,140,UNBLOCK CUMBRIA LTD,C00005,10,2014
Allerdale Borough Council,15501,Supplies & Services,Human Resources Pay Group,Consultants Fees,28/01/2015,100328,20,CUMBRIA CC,A00066,10,2014
Allerdale Borough Council,10202,Employee Costs,Human Resources Pay Group,Medical Screening,04/02/2015,100329,32.96,WELLWORK LTD,A00029,10,2014
Allerdale Borough Council,10202,Employee Costs,Human Resources Pay Group,Medical Screening,,100330,257.5,WELLWORK LTD,A00029,10,2014
Allerdale Borough Council,15102,Supplies & Services,Off-street - Owned,Equipment Repair & Maintenance,,100331,700,PARKING INFRASTRUCTRUE SERVICES UK,A01343,10,2014
Allerdale Borough Council,15102,Supplies & Services,Off-street - Owned,Equipment Repair & Maintenance,,100332,"1,350.00",PARKING INFRASTRUCTRUE SERVICES UK,A01343,10,2014
Allerdale Borough Council,15811,Supplies & Services,IT Services,Software Maintenance,,100333,"5,301.54",CREATIVE TECH MNGMNT SOLUTIONS,A00007,10,2014
Allerdale Borough Council,16350,Supplies & Services,Off-street - Owned,Miscellaneous Expenses,28/01/2015,100334,375,NAGELS MULTIGRAPHIC LTD,A00690,10,2014
Allerdale Borough Council,20102,Third Party Payments,Recycling,Horticulture (Obsolete),28/01/2015,100335,866.56,THOMPSONS PLANT HIRE LTD,A00262,10,2014
Allerdale Borough Council,16150,Supplies & Services,"The Hub, Workington Town Centre",General Promotions,28/01/2015,100336,300,CUMBRIAN NEWSPAPERS LIMITED,A00869,10,2014
Allerdale Borough Council,20102,Third Party Payments,Recycling,Horticulture (Obsolete),04/02/2015,100337,340.32,FCC RECYCLING (UK) LTD (ALCO),A00185,10,2014
Allerdale Borough Council,15401,Supplies & Services,Revenue,General Stationery,04/02/2015,100338,"3,600.00",GROSVENOR HOUSE PAPERS,A00034,10,2014
Allerdale Borough Council,20110,Third Party Payments,Emergency Planning,Other Local Authorities,04/02/2015,100339,"12,028.00",CUMBRIA CC,A00066,10,2014
Allerdale Borough Council,10401,Employee Costs,Head of Governance,Agency Staff Costs,,100340,242.56,VENN GROUP,A01836,10,2014
Allerdale Borough Council,10401,Employee Costs,Head of Governance,Agency Staff Costs,,100341,197.48,VENN GROUP,A01836,10,2014
Allerdale Borough Council,10401,Employee Costs,Head of Governance,Agency Staff Costs,,100342,200.72,VENN GROUP,A01836,10,2014
Allerdale Borough Council,10401,Employee Costs,Head of Governance,Agency Staff Costs,,100343,201.34,VENN GROUP,A01836,10,2014
Allerdale Borough Council,10401,Employee Costs,Head of Governance,Agency Staff Costs,,100344,193,VENN GROUP,A01836,10,2014
Allerdale Borough Council,10401,Employee Costs,Public Convenience Cleaning,Agency Staff Costs,28/01/2015,100345,173.94,COCKERMOUTH TOWN COUNCIL,A00586,10,2014
Allerdale Borough Council,15101,Supplies & Services,Public Convenience Cleaning,Equipment Costs,,100346,137.7,WF HYGIENE & CLEANING SUPPLIES,A01794,10,2014
Allerdale Borough Council,20150,Third Party Payments,Multi-storey Car Park,General Partnership Service Fees,28/01/2015,100347,"67,761.00",PARKSAFE,A00647,10,2014
Allerdale Borough Council,35106,Income,Homelessness,Dwellings Income,28/01/2015,100348,426.6,ALLERDALE - CASH OFFICE,A00342,10,2014
Allerdale Borough Council,35106,Income,Homelessness,Dwellings Income,28/01/2015,100349,75.92,ALLERDALE - CASH OFFICE,A00342,10,2014
Allerdale Borough Council,12408,Premises,Corporate Property Maintenance,Water & Sewage,28/01/2015,100350,21.7,UNITED UTILITIES,X00011,10,2014
Allerdale Borough Council,12408,Premises,Public Convenience Cleaning,Water & Sewage,28/01/2015,100351,23.03,UNITED UTILITIES ,X00011,10,2014
Allerdale Borough Council,12408,Premises,Corporate Property Maintenance,Water & Sewage,28/01/2015,100352,74.46,UNITED UTILITIES ,X00011,10,2014
Allerdale Borough Council,10401,Employee Costs,Carnegie Theatre,Agency Staff Costs,28/01/2015,100353,620.92,ADECCO RECRUITMENT,A00188,10,2014
Allerdale Borough Council,14101,Transport,Mayoral Services,Vehicle Leasing,28/01/2015,100354,180,ACE TAXIS,A01927,10,2014
Allerdale Borough Council,16350,Supplies & Services,Localities & Partnerships,Miscellaneous Expenses,,100355,45,SOLWAY PLAIN FUTURES LTD,A01194,10,2014
Allerdale Borough Council,10401,Employee Costs,Carnegie Theatre,Agency Staff Costs,28/01/2015,100356,539.22,ADECCO RECRUITMENT,A00188,10,2014
Allerdale Borough Council,16302,Supplies & Services,Localities & Partnerships,Room Hire,28/01/2015,100357,35,COCKERMOUTH TOWN COUNCIL,A00586,10,2014
Allerdale Borough Council,16350,Supplies & Services,Homelessness,Miscellaneous Expenses,28/01/2015,100358,416.67,KESWICK SUPERGLAZE LTD,X00110,10,2014
Allerdale Borough Council,15812,Supplies & Services,Trade Waste,Software Development,28/01/2015,100359,"5,000.00",TOTALMOBILE LIMITED,A01712,10,2014
Allerdale Borough Council,14100,Transport,Mayoral Services,Budget-Council Vehicles (Non-capital),28/01/2015,100360,140,ACE TAXIS,A01927,10,2014
Allerdale Borough Council,14100,Transport,Mayoral Services,Budget-Council Vehicles (Non-capital),28/01/2015,100361,25,ACE TAXIS,A01927,10,2014
Allerdale Borough Council,14101,Transport,Mayoral Services,Vehicle Leasing,28/01/2015,100362,80,ACE TAXIS,A01927,10,2014
Allerdale Borough Council,14101,Transport,Mayoral Services,Vehicle Leasing,28/01/2015,100363,170,ACE TAXIS,A01927,10,2014
Allerdale Borough Council,14101,Transport,Mayoral Services,Vehicle Leasing,28/01/2015,100364,80,ACE TAXIS,A01927,10,2014
Allerdale Borough Council,15812,Supplies & Services,Trade Waste,Software Development,28/01/2015,100365,"-2,500.00",TOTALMOBILE LIMITED,A01712,10,2014
Allerdale Borough Council,15804,Supplies & Services,IT Services,Computer Data Lines B.T.,28/01/2015,100366,"4,306.21",BRITISH TELECOMMUNICATIONS,X00004,10,2014
Allerdale Borough Council,15601,Supplies & Services,Environmental Services Pay Group,Postage,28/01/2015,100367,200,ROYAL MAIL LETTERS,X00021,10,2014
Allerdale Borough Council,15502,Supplies & Services,Legal Services,Land Registry Fees,27/01/2015,100368,24,HM LAND REGISTRY,A00505,10,2014
Allerdale Borough Council,54105,Capital Expenditure,Disabled Facilities Grants,Grants  Private Individuals (Capital),28/01/2015,100369,"1,421.20",JOSEPH RIDLEY BUILDERS LTD,X00124,10,2014
Allerdale Borough Council,54105,Capital Expenditure,Disabled Facilities Grants,Grants  Private Individuals (Capital),28/01/2015,100370,"3,637.80",PARTNERSHIP IN PROPERTY MANAGEMENT LTD,X00120,10,2014
Allerdale Borough Council,54105,Capital Expenditure,Disabled Facilities Grants,Grants  Private Individuals (Capital),28/01/2015,100371,"2,448.64",Redacted information - included personal information ,X00115,10,2014
Allerdale Borough Council,54105,Capital Expenditure,Disabled Facilities Grants,Grants  Private Individuals (Capital),28/01/2015,100372,"7,656.00",W W BUILDERS LIMITED,X00212,10,2014
Allerdale Borough Council,54105,Capital Expenditure,Disabled Facilities Grants,Grants  Private Individuals (Capital),28/01/2015,100373,"2,629.78",BLUE FLAME SERVICES LTD,X00213,10,2014
Allerdale Borough Council,15811,Supplies & Services,Shared ICT Costs,Software Maintenance,28/01/2015,100374,"-2,583.00",NET-CTRL LTD,A02128,10,2014
Allerdale Borough Council,15811,Supplies & Services,Shared ICT Costs,Software Maintenance,28/01/2015,100375,"2,583.00",NET-CTRL LTD,A02128,10,2014
Allerdale Borough Council,10401,Employee Costs,IT - New Initiatives,Agency Staff Costs,28/01/2015,100376,650,HAYS SPECIALIST RECRUITMENT LTD,A00280,10,2014
Allerdale Borough Council,10401,Employee Costs,IT - New Initiatives,Agency Staff Costs,04/02/2015,100377,"1,137.50",HAYS SPECIALIST RECRUITMENT LTD,A00280,10,2014
Allerdale Borough Council,10401,Employee Costs,IT - New Initiatives,Agency Staff Costs,04/02/2015,100378,650,HAYS SPECIALIST RECRUITMENT LTD,A00280,10,2014
Allerdale Borough Council,12101,Premises,Car Parks Inspection & Maintenance,External Maintenance & Decoration,28/01/2015,100379,939,Redacted information - included personal information ,C00008,10,2014
Allerdale Borough Council,16102,Supplies & Services,Mary Portas - Wigton,Regeneration Initiatives,04/02/2015,100380,300,Redacted information - included personal information ,A02138,10,2014
Allerdale Borough Council,12203,Premises,Corporate Property Maintenance,Plumbing and Heating Maintenance,04/02/2015,100381,853.31,O'CONNELL & BEAN (MECH&ELEC) LTD,C00078,10,2014
Allerdale Borough Council,15101,Supplies & Services,Public Convenience Cleaning,Equipment Costs,,100382,26.79,JEWSON LIMITED,A01673,10,2014
Allerdale Borough Council,15813,Supplies & Services,Shared Revs & Bens Projects,Software Miscellaneous,28/01/2015,100383,"9,110.70",CARLISLE CITY COUNCIL,A00161,10,2014
Allerdale Borough Council,81608,Balance Sheet,General Fund,Legal Provisions,28/01/2015,100384,"3,856.67",Redacted information - included personal information ,M00690,10,2014
Allerdale Borough Council,10601,Employee Costs,Shared IT Services Pay Group,External Courses & Seminar Fees,,100385,641.5,BARCLAYCARD COMMERCIAL,X00207,10,2014
Allerdale Borough Council,10601,Employee Costs,Shared IT Services Pay Group,External Courses & Seminar Fees,,100386,729.08,BARCLAYCARD COMMERCIAL,X00207,10,2014
Allerdale Borough Council,10401,Employee Costs,IT - New Initiatives,Agency Staff Costs,04/02/2015,100387,325,HAYS SPECIALIST RECRUITMENT LTD,A00280,10,2014
Allerdale Borough Council,16150,Supplies & Services,Solway AONB Other Projects,General Promotions,,100388,120,WEST HOUSE,A02020,10,2014
Allerdale Borough Council,15513,Supplies & Services,Carnegie Theatre,Subcontractors - General,04/02/2015,100389,"1,756.25",NH TECHNICAL SERVICES,A02008,10,2014
Allerdale Borough Council,15810,Supplies & Services,IT Services,Software Licences,,100390,985.84,CONTRACT DATA RESEARCH LTD,A00393,10,2014
Allerdale Borough Council,15802,Supplies & Services,IT Services,Hardware Maintenance,,100391,"3,763.12",NETCENTRIX LIMITED,A00106,10,2014
Allerdale Borough Council,10401,Employee Costs,Elections,Agency Staff Costs,04/02/2015,100392,"1,208.50",SELLICK PARTNERSHIP,A01993,10,2014
Allerdale Borough Council,10401,Employee Costs,Elections,Agency Staff Costs,04/02/2015,100393,"1,450.50",SELLICK PARTNERSHIP,A01993,10,2014
Allerdale Borough Council,10401,Employee Costs,Elections,Agency Staff Costs,04/02/2015,100394,"1,459.00",SELLICK PARTNERSHIP,A01993,10,2014
Allerdale Borough Council,10401,Employee Costs,Elections,Agency Staff Costs,04/02/2015,100395,"1,450.00",SELLICK PARTNERSHIP,A01993,10,2014
Allerdale Borough Council,10401,Employee Costs,Elections,Agency Staff Costs,04/02/2015,100396,"1,446.50",SELLICK PARTNERSHIP,A01993,10,2014
Allerdale Borough Council,10401,Employee Costs,Elections,Agency Staff Costs,04/02/2015,100397,"1,468.00",SELLICK PARTNERSHIP,A01993,10,2014
Allerdale Borough Council,10401,Employee Costs,Elections,Agency Staff Costs,,100398,"2,367.50",SELLICK PARTNERSHIP,A01993,10,2014
Allerdale Borough Council,75103,Holding and Control Accounts,Payroll Suspense Account,PAYROLL January 15 Travel & Subsistence  ,,,"11,475.77",INLAND REVENUE,X00038,10,2014
